fUSD/lending_fUSD_20260521
["ID","MTS","AMOUNT","RATE_DAILY","PERIOD"]
[422726875,1779323432000,-500.0,0.00010699,2]
[422726884,1779323432000,-500.0,0.00010699,2]
[422726885,1779323432000,-500.0,0.00010699,2]
[422726871,1779323432000,-500.0,0.00010699,2]
[422726877,1779323432000,-500.0,0.00010699,2]
[422726887,1779323432000,-500.0,0.00010699,2]
[422726874,1779323432000,-500.0,0.00010699,2]
[422726876,1779323432000,-500.0,0.00010699,2]
[422726882,1779323432000,-500.0,0.00010699,2]
[422726886,1779323432000,-500.0,0.00010699,2]
[422726910,1779323433000,-500.0,0.00010699,2]
[422726917,1779323433000,-500.0,0.00010699,2]
[422726920,1779323433000,-500.0,0.00010699,2]
[422726925,1779323433000,-500.0,0.00010699,2]
[422726914,1779323433000,-500.0,0.00010699,2]
[422726926,1779323433000,-500.0,0.00010699,2]
[422726916,1779323433000,-500.0,0.00010699,2]
[422726915,1779323433000,-500.0,0.00010699,2]
[422726909,1779323433000,-169.53353217,0.00010699,2]
[422726907,1779323433000,-480.80614963,0.00010699,2]
[422726922,1779323433000,-500.0,0.00010699,2]
[422726912,1779323433000,-500.0,0.00010699,2]
[422726908,1779323433000,-500.0,0.00010699,2]
[422726905,1779323433000,-500.0,0.00010699,2]
[422726902,1779323433000,-524.42432058,0.00010699,2]
[422726913,1779323433000,-500.0,0.00010699,2]
[422726911,1779323433000,-500.0,0.00010699,2]
[422726904,1779323433000,-500.0,0.00010699,2]
[422726903,1779323433000,-500.0,0.00010699,2]
[422726899,1779323433000,-500.0,0.00010699,2]
[422726900,1779323433000,-500.0,0.00010699,2]
[422726906,1779323433000,-19.19385037,0.00010699,2]
[422726921,1779323433000,-500.0,0.00010699,2]
[422726901,1779323433000,-500.0,0.00010699,2]
[422726919,1779323433000,-350.0,0.00010699,2]
[422726941,1779323433000,-166.46789739,0.00010699,2]
[422726943,1779323433000,-59383.35671024,0.000107,2]
[422726944,1779323433000,-380.0,0.000107,2]
[422726942,1779323433000,-500.0,0.00010699,2]
[422726940,1779323433000,-514.632848,0.00010699,2]
[422726939,1779323433000,-500.0,0.00010699,2]
[422726945,1779323433000,-13161.9209215,0.000107,2]
[422726946,1779323433000,-1238.09980402,0.000107,2]
[422726934,1779323433000,-500.0,0.00010699,2]
[422726928,1779323433000,-500.0,0.00010699,2]
[422726933,1779323433000,-500.0,0.00010699,2]
[422726923,1779323433000,-500.0,0.00010699,2]
[422726937,1779323433000,-500.0,0.00010699,2]
[422726932,1779323433000,-500.0,0.00010699,2]
[422726930,1779323433000,-500.0,0.00010699,2]
[422726938,1779323433000,-500.0,0.00010699,2]
[422726936,1779323433000,-500.0,0.00010699,2]
[422726931,1779323433000,-500.0,0.00010699,2]
[422726929,1779323433000,-500.0,0.00010699,2]
[422726927,1779323433000,-500.0,0.00010699,2]
[422726918,1779323433000,-500.0,0.00010699,2]
[422726924,1779323433000,-500.0,0.00010699,2]
[422726935,1779323433000,-500.0,0.00010699,2]
[422726957,1779323438000,-5147.67348597,0.00011099,2]
[422726960,1779323438000,-6563.41935381,0.00011829,2]
[422726961,1779323438000,-2000.0,0.00011908,2]
[422726959,1779323438000,-3266.36228458,0.00011556,2]
[422726971,1779323438000,-150.57814571,0.00012581,2]
[422726969,1779323438000,-3266.36228458,0.00012511,2]
[422726972,1779323438000,-628.33712337,0.00012681,2]
[422726974,1779323438000,-22389.27,0.00012757,2]
[422726958,1779323438000,-6563.41935381,0.00011214,2]
[422726967,1779323438000,-485.68,0.00012351,2]
[422726955,1779323438000,-3266.3622846,0.00011099,2]
[422726962,1779323438000,-823.0,0.00012018,2]
[422726956,1779323438000,-3266.36228458,0.00011099,2]
[422726952,1779323438000,-6563.41935388,0.000109,2]
[422726965,1779323438000,-3266.36228458,0.00012033,2]
[422726964,1779323438000,-736.0,0.00012031,2]
[422726953,1779323438000,-587.0,0.00010925,2]
[422726950,1779323438000,-1600.0,0.000108,3]
[422726948,1779323438000,-3916578.75081845,0.000107,2]
[422726949,1779323438000,-1200.0,0.000107,3]
[422726947,1779323438000,-7628.8151,0.000107,2]
[422726979,1779323438000,-3266.36228458,0.00012989,2]
[422726954,1779323438000,-433.0,0.00010937,2]
[422726984,1779323438000,-1152.0,0.00013219,2]
[422726951,1779323438000,-2100.0,0.000109,3]
[422726983,1779323438000,-438.31,0.0001314,2]
[422726976,1779323438000,-185.64,0.00012918,2]
[422727001,1779323438000,-185.64,0.00013779,2]
[422727003,1779323438000,-166.67,0.00013912,2]
[422727002,1779323438000,-166.66,0.00013836,2]
[422727004,1779323438000,-500.0,0.00013917,2]
[422727000,1779323438000,-166.66,0.00013699,2]
[422726993,1779323438000,-208.63953863,0.00013445,2]
[422726989,1779323438000,-700.0,0.00013356,2]
[422726992,1779323438000,-160.0,0.00013445,2]
[422726994,1779323438000,-215.20247212,0.0001345,2]
[422726990,1779323438000,-500.0,0.00013356,2]
[422726999,1779323438000,-200.0,0.00013699,2]
[422726997,1779323438000,-1354.0,0.00013601,2]
[422726978,1779323438000,-164.07,0.00012986,2]
[422726988,1779323438000,-185.64,0.00013348,2]
[422726981,1779323438000,-771.92,0.00013009,2]
[422726982,1779323438000,-970.37,0.00013138,2]
[422726980,1779323438000,-4151.68110667,0.00013,5]
[422726996,1779323438000,-1000.0,0.000135,2]
[422726998,1779323438000,-927.0,0.00013601,2]
[422726995,1779323438000,-3266.36228458,0.00013467,2]
[422726986,1779323438000,-1252.0,0.00013233,2]
[422726987,1779323438000,-408.0066,0.00013267,2]
[422726985,1779323438000,-2000.0,0.00013231,2]
[422727041,1779323439000,-150.978528,0.0001425,2]
[422727044,1779323439000,-64064.61959257,0.00014289,2]
[422727048,1779323439000,-350.0,0.0001432,2]
[422727045,1779323439000,-160.0,0.00014308,2]
[422727049,1779323439000,-3348.28877,0.00014342,2]
[422727039,1779323439000,-189.0,0.00014247,2]
[422727051,1779323439000,-203.30554584,0.00014368,2]
[422727052,1779323439000,-166.66,0.00014384,2]
[422727050,1779323439000,-151.0,0.00014368,2]
[422727040,1779323439000,-166.66,0.00014247,2]
[422727047,1779323439000,-176.497524,0.00014308,2]
[422727042,1779323439000,-322707.40604898,0.0001425,2]
[422727046,1779323439000,-168.248762,0.00014308,2]
[422727063,1779323439000,-171.082237,0.000145,2]
[422727053,1779323439000,-899.0,0.000144,2]
[422727056,1779323439000,-162.130627,0.00014483,2]
[422727055,1779323439000,-373.724521,0.00014445,2]
[422727054,1779323439000,-3266.36228458,0.00014422,2]
[422727057,1779323439000,-160.0,0.00014483,2]
[422727060,1779323439000,-151.0,0.00014494,2]
[422727059,1779323439000,-209.315261,0.00014483,2]
[422727058,1779323439000,-184.65763,0.00014483,2]
[422727062,1779323439000,-153.874212,0.00014497,2]
[422727061,1779323439000,-1273.39,0.00014496,2]
[422727038,1779323439000,-185.64,0.0001421,2]
[422727065,1779323439000,-1613.0,0.00014541,2]
[422727064,1779323439000,-400.0,0.000145,5]
[422727066,1779323439000,-2000.0,0.00014554,2]
[422727043,1779323439000,-151.0,0.0001425,2]
[422727035,1779323439000,-289.81062676,0.00014167,2]
[422727022,1779323439000,-1273.39,0.00014167,2]
[422727032,1779323439000,-569.14266433,0.00014167,2]
[422727067,1779323439000,-160.0,0.00014556,2]
[422727011,1779323439000,-509.66535247,0.00014038,2]
[422727010,1779323439000,-500.0,0.00014038,2]
[422727007,1779323439000,-166.66,0.00013973,2]
[422727008,1779323439000,-500.0,0.00014038,2]
[422727005,1779323439000,-444.9599,0.00013919,2]
[422727006,1779323439000,-3266.36228458,0.00013944,2]
[422727009,1779323439000,-500.0,0.00014038,2]
[422727013,1779323439000,-5734.1378378,0.00014043,2]
[422727023,1779323439000,-1273.39,0.00014167,2]
[422727025,1779323439000,-1273.39,0.00014167,2]
[422727012,1779323439000,-158.673404,0.00014043,2]
[422727024,1779323439000,-1273.39,0.00014167,2]
[422727018,1779323439000,-166.66,0.0001411,2]
[422727017,1779323439000,-35709.6182,0.00014068,2]
[422727014,1779323439000,-8466.6497413,0.00014043,2]
[422727015,1779323439000,-18469.7412964,0.00014043,2]
[422727016,1779323439000,-151.0,0.00014068,2]
[422727021,1779323439000,-1273.39,0.00014167,2]
[422727020,1779323439000,-1136.09471333,0.00014167,5]
[422727019,1779323439000,-151.0,0.00014165,2]
[422727026,1779323439000,-539.16316336,0.00014167,2]
[422727029,1779323439000,-500.0,0.00014167,2]
[422727030,1779323439000,-500.0,0.00014167,2]
[422727028,1779323439000,-500.0,0.00014167,2]
[422727027,1779323439000,-638.27,0.00014167,2]
[422727031,1779323439000,-500.0,0.00014167,2]
[422727033,1779323439000,-500.0,0.00014167,2]
[422727034,1779323439000,-500.0,0.00014167,2]
[422727037,1779323439000,-151.0,0.000142,2]
[422727068,1779323439000,-164.677803,0.00014556,2]
[422727036,1779323439000,-8437.5202,0.00014189,2]
[422727075,1779323439000,-400.0,0.000146,5]
[422727101,1779323439000,-782.0,0.000149,5]
[422727105,1779323439000,-362.08554081,0.00014925,2]
[422727103,1779323439000,-1000.0,0.00014918,2]
[422727108,1779323439000,-919.5542726,0.00014943,2]
[422727118,1779323439000,-500.0,0.00014999,2]
[422727107,1779323439000,-421.5296695,0.00014943,2]
[422727109,1779323439000,-1153.0,0.00014959,2]
[422727111,1779323439000,-791.46864249,0.0001499,2]
[422727110,1779323439000,-170.23,0.00014973,2]
[422727116,1779323439000,-500.0,0.00014998,2]
[422727113,1779323439000,-184.96504065,0.00014997,2]
[422727114,1779323439000,-151.0,0.00014997,2]
[422727115,1779323439000,-500.0,0.00014998,2]
[422727117,1779323439000,-1136.09471332,0.00014999,5]
[422727119,1779323439000,-500.0,0.00014999,2]
[422727121,1779323439000,-500.0,0.00014999,2]
[422727122,1779323439000,-500.0,0.00014999,2]
[422727120,1779323439000,-500.0,0.00014999,2]
[422727123,1779323439000,-500.0,0.00014999,2]
[422727127,1779323439000,-500.0,0.00014999,2]
[422727126,1779323439000,-500.0,0.00014999,2]
[422727130,1779323439000,-500.0,0.00014999,2]
[422727125,1779323439000,-500.0,0.00014999,2]
[422727128,1779323439000,-500.0,0.00014999,2]
[422727129,1779323439000,-500.0,0.00014999,2]
[422727132,1779323439000,-500.0,0.00014999,2]
[422727134,1779323439000,-500.0,0.00014999,2]
[422727131,1779323439000,-500.0,0.00014999,2]
[422727072,1779323439000,-1286.0,0.00014562,2]
[422727098,1779323439000,-200.0,0.0001488,2]
[422727099,1779323439000,-1000.0,0.00014887,2]
[422727112,1779323439000,-151.0,0.00014996,2]
[422727133,1779323439000,-500.0,0.00014999,2]
[422727077,1779323439000,-710.0,0.00014623,5]
[422727070,1779323439000,-500.0,0.0001456,2]
[422727071,1779323439000,-500.0,0.0001456,2]
[422727069,1779323439000,-169.355606,0.00014556,2]
[422727076,1779323439000,-893.0,0.00014623,5]
[422727106,1779323439000,-285.4859125,0.00014943,2]
[422727073,1779323439000,-628.33712337,0.00014583,2]
[422727074,1779323439000,-369.93008129,0.00014583,2]
[422727079,1779323439000,-400.0,0.000147,5]
[422727091,1779323439000,-1000.0,0.00014813,2]
[422727081,1779323439000,-1000.0,0.0001472,2]
[422727092,1779323439000,-350.0,0.00014833,2]
[422727082,1779323439000,-700.0,0.00014726,2]
[422727080,1779323439000,-1000.0,0.00014719,2]
[422727083,1779323439000,-350.0,0.00014748,2]
[422727078,1779323439000,-3003.83804218,0.000147,2]
[422727090,1779323439000,-400.0,0.000148,5]
[422727100,1779323439000,-1000.0,0.00014892,2]
[422727084,1779323439000,-1279.459094,0.00014779,2]
[422727102,1779323439000,-3266.36228458,0.000149,2]
[422727095,1779323439000,-333.33333,0.0001485,2]
[422727097,1779323439000,-994.0,0.00014867,5]
[422727096,1779323439000,-1000.0,0.00014865,2]
[422727094,1779323439000,-333.33333,0.0001485,2]
[422727104,1779323439000,-150.0,0.00014924,2]
[422727085,1779323439000,-1889.1649127,0.00014779,2]
[422727087,1779323439000,-1000.0,0.0001478,2]
[422727093,1779323439000,-333.33333,0.0001485,2]
[422727089,1779323439000,-160.0,0.000148,2]
[422727086,1779323439000,-4121.1563333,0.00014779,2]
[422727088,1779323439000,-1000.0,0.00014788,2]
[422727152,1779323440000,-1273.39,0.00014999,2]
[422727148,1779323440000,-500.0,0.00014999,2]
[422727157,1779323440000,-262.74316344,0.00014999,2]
[422727154,1779323440000,-1273.39,0.00014999,2]
[422727153,1779323440000,-500.0,0.00014999,2]
[422727150,1779323440000,-500.0,0.00014999,2]
[422727146,1779323440000,-500.0,0.00014999,2]
[422727147,1779323440000,-500.0,0.00014999,2]
[422727149,1779323440000,-500.0,0.00014999,2]
[422727135,1779323440000,-500.0,0.00014999,2]
[422727144,1779323440000,-500.0,0.00014999,2]
[422727137,1779323440000,-500.0,0.00014999,2]
[422727141,1779323440000,-500.0,0.00014999,2]
[422727140,1779323440000,-500.0,0.00014999,2]
[422727139,1779323440000,-500.0,0.00014999,2]
[422727138,1779323440000,-294.204584,0.00014999,2]
[422727143,1779323440000,-500.0,0.00014999,2]
[422727142,1779323440000,-500.0,0.00014999,2]
[422727155,1779323440000,-500.0,0.00014999,2]
[422727145,1779323440000,-500.0,0.00014999,2]
[422727151,1779323440000,-500.0,0.00014999,2]
[422727136,1779323440000,-500.0,0.00014999,2]
[422727161,1779323440000,-1273.39,0.00014999,2]
[422727160,1779323440000,-1273.39,0.00014999,2]
[422727179,1779323440000,-1096.39685345,0.00011099,2]
[422727178,1779323440000,-3509.63775967,0.00015,2]
[422727176,1779323440000,-4187.24692403,0.00015,2]
[422727175,1779323440000,-3004.30806817,0.00015,2]
[422727169,1779323440000,-1273.39,0.00014999,2]
[422727173,1779323440000,-151.0,0.00014999,2]
[422727168,1779323440000,-1273.39,0.00014999,2]
[422727170,1779323440000,-1273.39,0.00014999,2]
[422727172,1779323440000,-1273.51973057,0.00014999,2]
[422727171,1779323440000,-1273.39,0.00014999,2]
[422727165,1779323440000,-1273.39,0.00014999,2]
[422727174,1779323440000,-57960.35109582,0.00015,2]
[422727166,1779323440000,-1273.39,0.00014999,2]
[422727163,1779323440000,-1273.39,0.00014999,2]
[422727164,1779323440000,-1273.39,0.00014999,2]
[422727156,1779323440000,-1273.39,0.00014999,2]
[422727162,1779323440000,-1273.39,0.00014999,2]
[422727158,1779323440000,-1273.39,0.00014999,2]
[422727159,1779323440000,-1273.39,0.00014999,2]
[422727167,1779323440000,-1273.39,0.00014999,2]
[422727203,1779323446000,-4855.6426458,0.00011555,2]
[422727202,1779323446000,-4051.27663247,0.00011099,2]
[422727204,1779323446000,-292.03084012,0.00011555,2]
[422727205,1779323446000,-1655.0,0.00011971,2]
[422727206,1779323446000,-6563.41935381,0.00012443,2]
[422727208,1779323446000,-670.23,0.00013057,2]
[422727207,1779323446000,-2967.69770511,0.00013057,2]
[422727209,1779323446000,-598.96198166,0.00013057,2]
[422727228,1779323981000,1030.0,0.0001,3]
[422727229,1779324108000,500.0,0.00028315,120]
[422727230,1779324540000,1000.0,0.00028765,120]
[422727250,1779324632000,-500.0,0.00010599,2]
[422727244,1779324632000,-1200.0,0.00010598,2]
[422727243,1779324632000,-162.63364167,0.00010598,2]
[422727242,1779324632000,-137.36635833,0.00010598,2]
[422727248,1779324632000,-500.0,0.00010599,2]
[422727247,1779324632000,-500.0,0.00010599,2]
[422727238,1779324632000,-208.63953863,0.00010585,2]
[422727241,1779324632000,-150.0,0.00010598,2]
[422727240,1779324632000,-301.3270183,0.0001059,2]
[422727252,1779324632000,-500.0,0.00010599,2]
[422727239,1779324632000,-114.52799524,0.0001059,2]
[422727237,1779324632000,-215.20247212,0.00010585,2]
[422727236,1779324632000,-160.0,0.00010585,2]
[422727233,1779324632000,-1060.14397087,0.00010388,2]
[422727235,1779324632000,-167.1,0.00010388,2]
[422727234,1779324632000,-539.66502913,0.00010388,2]
[422727245,1779324632000,-1136.09471332,0.00010599,3]
[422727260,1779324632000,-370.67164664,0.00010599,2]
[422727246,1779324632000,-1136.09471333,0.00010599,3]
[422727261,1779324632000,-23412.23071221,0.000106,2]
[422727270,1779324632000,-1668.97568377,0.000106,2]
[422727268,1779324632000,-900.10494811,0.000106,2]
[422727266,1779324632000,-186332.07067418,0.000106,2]
[422727269,1779324632000,-1600.33,0.000106,2]
[422727271,1779324632000,-906.78256907,0.000106,2]
[422727265,1779324632000,-26654.71848154,0.000106,2]
[422727264,1779324632000,-221271.0945833,0.000106,2]
[422727263,1779324632000,-21918.62055404,0.000106,2]
[422727267,1779324632000,-210884.94624515,0.000106,2]
[422727258,1779324632000,-210.24299361,0.00010599,2]
[422727262,1779324632000,-1804.06328209,0.000106,2]
[422727251,1779324632000,-287.44243205,0.00010599,2]
[422727254,1779324632000,-500.0,0.00010599,2]
[422727257,1779324632000,-500.0,0.00010599,2]
[422727249,1779324632000,-500.0,0.00010599,2]
[422727253,1779324632000,-500.0,0.00010599,2]
[422727255,1779324632000,-500.0,0.00010599,2]
[422727259,1779324632000,-500.0,0.00010599,2]
[422727256,1779324632000,-500.0,0.00010599,2]
[422727276,1779324638000,-38899.00000002,0.000106,2]
[422727277,1779324638000,-8119.93114587,0.000106,2]
[422727281,1779324642000,-298.2047593,0.000105,2]
[422727311,1779324643000,-1013.92476,0.000105,2]
[422727285,1779324643000,-514.07266405,0.000105,2]
[422727287,1779324643000,-482.25934277,0.000105,2]
[422727283,1779324643000,-665.0,0.000105,2]
[422727284,1779324643000,-651.36484044,0.000105,2]
[422727282,1779324643000,-407.75349585,0.000105,2]
[422727320,1779324647000,-505.0,0.000105,2]
[422727343,1779324719000,314.99,0.000266,120]
[422727344,1779324719000,209.99,0.00028,120]
[422727347,1779325049000,150.1321572,0.00025273,120]
[422727349,1779325190000,790.5672,0.00028767,120]
[422727350,1779325740000,1000.0,0.00028766,120]
[422727394,1779325831000,-232.91905604,0.00011159,2]
[422727393,1779325831000,-63747.35666223,0.00011159,2]
[422727388,1779325831000,-508.7056,0.00011059,2]
[422727392,1779325831000,-150.0,0.00011158,2]
[422727390,1779325831000,-1452.11533614,0.00011158,2]
[422727396,1779325831000,-159.95,0.00011213,2]
[422727391,1779325831000,-33914.23013306,0.00011158,2]
[422727387,1779325831000,-1523.43,0.00010991,2]
[422727386,1779325831000,-322.21289993,0.0001099,2]
[422727385,1779325831000,-877.78710007,0.0001099,2]
[422727383,1779325831000,-167.14,0.00010805,2]
[422727381,1779325831000,-157.0866387,0.00010606,2]
[422727380,1779325831000,-215.20247212,0.00010606,2]
[422727382,1779325831000,-51.55289993,0.00010606,2]
[422727379,1779325831000,-160.0,0.00010606,2]
[422727377,1779325831000,-253.63887917,0.000106,2]
[422727378,1779325831000,-151.0,0.000106,2]
[422727376,1779325831000,-371.07472304,0.00010599,2]
[422727375,1779325831000,-163.44,0.0001054,2]
[422727372,1779325831000,-266.76715954,8.539e-05,2]
[422727367,1779325831000,-115.56488787,8.539e-05,2]
[422727374,1779325831000,-28.91728697,9.092e-05,2]
[422727373,1779325831000,-133.88271303,9.092e-05,2]
[422727365,1779325831000,-250.0,6.603e-05,2]
[422727362,1779325831000,-161.24,6.003e-05,2]
[422727384,1779325831000,-150.0,0.00010959,2]
[422727395,1779325831000,-485.68,0.00011184,2]
[422727389,1779325831000,-771.92,0.00011129,2]
[422727398,1779325831000,-165.0,0.00011308,2]
[422727429,1779325831000,-10575.38298362,0.00013028,2]
[422727427,1779325831000,-2000.0,0.00012909,2]
[422727428,1779325831000,-500.0,0.00012927,2]
[422727426,1779325831000,-165.0,0.00012721,2]
[422727423,1779325831000,-438.32,0.00012329,2]
[422727419,1779325831000,-253.05042588,0.00012212,2]
[422727424,1779325831000,-10575.38298362,0.00012653,2]
[422727422,1779325831000,-10575.38298362,0.00012279,2]
[422727420,1779325831000,-182.82483682,0.00012212,2]
[422727425,1779325831000,-500.0,0.00012653,2]
[422727417,1779325831000,-166.67,0.00012167,2]
[422727421,1779325831000,-677.56251171,0.00012212,2]
[422727418,1779325831000,-255.0,0.00012207,2]
[422727397,1779325831000,-1523.43,0.00011265,2]
[422727416,1779325831000,-167.14,0.00012156,2]
[422727415,1779325831000,-1523.43,0.0001209,2]
[422727399,1779325831000,-189.0,0.00011308,2]
[422727402,1779325831000,-3365.49,0.00011398,2]
[422727410,1779325831000,-500.0,0.00011836,2]
[422727407,1779325831000,-1523.43,0.0001154,2]
[422727400,1779325831000,-1951.56,0.00011392,2]
[422727404,1779325831000,-2000.0,0.00011475,2]
[422727406,1779325831000,-10575.38298371,0.0001153,2]
[422727412,1779325831000,-10575.38298362,0.00011904,2]
[422727414,1779325831000,-1680.0,0.00012089,2]
[422727409,1779325831000,-1523.43,0.00011815,2]
[422727408,1779325831000,-159.37,0.0001163,2]
[422727464,1779325832000,-500.0,0.00013698,2]
[422727470,1779325832000,-453.1992022,0.00013742,2]
[422727469,1779325832000,-3115.6655558,0.00013718,2]
[422727466,1779325832000,-166.66,0.00013699,2]
[422727459,1779325832000,-187.0,0.00013698,2]
[422727462,1779325832000,-500.0,0.00013698,2]
[422727467,1779325832000,-2500.0,0.00013699,2]
[422727463,1779325832000,-500.0,0.00013698,2]
[422727468,1779325832000,-200.0,0.00013699,2]
[422727461,1779325832000,-500.0,0.00013698,2]
[422727472,1779325832000,-500.0,0.00013742,2]
[422727465,1779325832000,-500.0,0.00013698,2]
[422727473,1779325832000,-1273.39,0.00013742,2]
[422727477,1779325832000,-10575.38298362,0.00013777,2]
[422727471,1779325832000,-500.0,0.00013742,2]
[422727474,1779325832000,-500.0,0.00013749,2]
[422727480,1779325832000,-500.0,0.00013817,2]
[422727476,1779325832000,-1675.43052868,0.00013765,2]
[422727478,1779325832000,-151.0,0.00013815,2]
[422727479,1779325832000,-500.0,0.00013817,2]
[422727482,1779325832000,-500.0,0.00013817,2]
[422727483,1779325832000,-500.0,0.00013817,2]
[422727487,1779325832000,-927.0,0.00013818,2]
[422727484,1779325832000,-500.0,0.00013817,2]
[422727486,1779325832000,-500.0,0.00013817,2]
[422727460,1779325832000,-500.0,0.00013698,2]
[422727475,1779325832000,-500.0,0.00013765,2]
[422727458,1779325832000,-569.14266433,0.00013698,2]
[422727449,1779325832000,-500.0,0.00013698,2]
[422727456,1779325832000,-500.0,0.00013698,2]
[422727430,1779325832000,-500.0,0.00013201,2]
[422727433,1779325832000,-500.0,0.00013324,2]
[422727432,1779325832000,-500.0,0.00013324,2]
[422727431,1779325832000,-2351.0,0.00013297,2]
[422727436,1779325832000,-500.0,0.00013356,2]
[422727435,1779325832000,-509.66535247,0.00013324,2]
[422727437,1779325832000,-700.0,0.00013356,2]
[422727434,1779325832000,-500.0,0.00013324,2]
[422727438,1779325832000,-433.0,0.00013356,2]
[422727439,1779325832000,-10575.38298362,0.00013402,2]
[422727442,1779325832000,-2000.0,0.00013597,2]
[422727440,1779325832000,-500.0,0.00013475,2]
[422727457,1779325832000,-500.0,0.00013698,2]
[422727441,1779325832000,-167.14,0.00013506,2]
[422727485,1779325832000,-500.0,0.00013817,2]
[422727448,1779325832000,-500.0,0.00013698,2]
[422727445,1779325832000,-500.0,0.00013698,2]
[422727443,1779325832000,-8437.5202,0.00013598,2]
[422727444,1779325832000,-2500.0,0.00013598,2]
[422727446,1779325832000,-500.0,0.00013698,2]
[422727451,1779325832000,-500.0,0.00013698,2]
[422727450,1779325832000,-500.0,0.00013698,2]
[422727453,1779325832000,-500.0,0.00013698,2]
[422727452,1779325832000,-500.0,0.00013698,2]
[422727454,1779325832000,-500.0,0.00013698,2]
[422727455,1779325832000,-500.0,0.00013698,2]
[422727447,1779325832000,-500.0,0.00013698,2]
[422727489,1779325832000,-3545.0,0.00013818,2]
[422727481,1779325832000,-500.0,0.00013817,2]
[422727494,1779325832000,-166.66,0.00013836,2]
[422727521,1779325832000,-246.146363,0.00014056,2]
[422727522,1779325832000,-332.292727,0.00014056,2]
[422727526,1779325832000,-166.66,0.0001411,2]
[422727525,1779325832000,-195.047887,0.00014072,2]
[422727524,1779325832000,-177.523943,0.00014072,2]
[422727527,1779325832000,-3082.86230776,0.00014122,2]
[422727528,1779325832000,-374.556137,0.00014126,2]
[422727532,1779325832000,-3115.66555578,0.00014225,2]
[422727523,1779325832000,-160.0,0.00014072,2]
[422727529,1779325832000,-165.0,0.00014134,2]
[422727530,1779325832000,-10575.38298362,0.00014151,2]
[422727531,1779325832000,-3119.0,0.000142,2]
[422727533,1779325832000,-3082.86230776,0.00014233,2]
[422727534,1779325832000,-166.66,0.00014247,2]
[422727536,1779325832000,-312.28288677,0.00014297,2]
[422727542,1779325832000,-1279.847,0.00014384,2]
[422727545,1779325832000,-151.0,0.00014465,2]
[422727543,1779325832000,-3115.66555578,0.00014393,2]
[422727539,1779325832000,-3082.86230776,0.00014344,2]
[422727544,1779325832000,-3082.86230776,0.00014456,2]
[422727541,1779325832000,-166.66,0.00014384,2]
[422727492,1779325832000,-6058.0,0.00013818,2]
[422727538,1779325832000,-2000.0,0.00014343,2]
[422727537,1779325832000,-3348.28877,0.00014342,2]
[422727546,1779325832000,-500.0,0.00014467,2]
[422727535,1779325832000,-150.978528,0.0001425,2]
[422727547,1779325832000,-500.0,0.00014467,2]
[422727520,1779325832000,-160.0,0.00014056,2]
[422727519,1779325832000,-3115.66555578,0.00014056,2]
[422727540,1779325832000,-1444.0,0.00014383,2]
[422727517,1779325832000,-281.789018,0.00014055,2]
[422727491,1779325832000,-1224.0,0.00013818,2]
[422727516,1779325832000,-160.0,0.00014055,2]
[422727488,1779325832000,-625.0,0.00013818,2]
[422727493,1779325832000,-3633.0,0.00013818,2]
[422727495,1779325832000,-3115.66555578,0.00013887,2]
[422727496,1779325832000,-3082.86230778,0.000139,2]
[422727498,1779325832000,-271.64279975,0.0001399,2]